fUST/lending_fUST_20250222
["ID","MTS","AMOUNT","RATE_DAILY","PERIOD"]
[354055392,1740211845682,-500.0,0.00014109,2]
[354055393,1740211845691,-500.0,0.00014109,2]
[354055394,1740211845700,-500.0,0.00014109,2]
[354055396,1740211845710,-500.0,0.00014109,2]
[354055398,1740211845719,-500.0,0.00014109,2]
[354055400,1740211845728,-500.0,0.00014109,2]
[354055401,1740211845738,-575.43,0.00014109,2]
[354055402,1740211845747,-1872.78,0.00014109,2]
[354055403,1740211845757,-609.75,0.00014109,2]
[354055404,1740211845766,-500.0,0.00014109,2]
[354055405,1740211845776,-506.27120181,0.00014109,2]
[354055406,1740211845786,-500.0,0.00014109,2]
[354055407,1740211845795,-500.0,0.00014109,2]
[354055408,1740211845805,-500.0,0.00014109,2]
[354055409,1740211845814,-500.0,0.00014109,2]
[354055410,1740211845824,-520.55,0.00014109,2]
[354055411,1740211845834,-500.0,0.00014109,2]
[354055413,1740211845843,-249.2,0.00014109,2]
[354055414,1740211845853,-622.4,0.00014109,2]
[354055415,1740211845863,-500.0,0.00014109,2]
[354055417,1740211845875,-500.0,0.00014109,2]
[354055418,1740211845886,-308.15,0.00014109,2]
[354055419,1740211845895,-500.0,0.00014109,2]
[354055420,1740211845905,-220.88825573,0.00014109,2]
[354055421,1740211845915,-4914.56,0.00014109,2]
[354055422,1740211845924,-281.85,0.00014191,2]
[354055423,1740211845933,-500.0,0.00014191,2]
[354055424,1740211845943,-912.48,0.00014191,2]
[354055425,1740211845953,-500.0,0.00014191,2]
[354055426,1740211845964,-454.7,0.00014191,2]
[354055428,1740211845974,-500.0,0.00014191,2]
[354055429,1740211845984,-500.0,0.00014191,2]
[354055431,1740211845994,-500.0,0.00014191,2]
[354055432,1740211846003,-500.0,0.00014191,2]
[354055433,1740211846013,-500.0,0.00014191,2]
[354055434,1740211846028,-500.0,0.00014191,2]
[354055436,1740211846039,-500.0,0.00014191,2]
[354055438,1740211846050,-429.9,0.00014191,2]
[354055439,1740211846061,-575.43,0.00014191,2]
[354055440,1740211846071,-1872.78,0.00014191,2]
[354055441,1740211846080,-500.0,0.00014191,2]
[354055443,1740211846091,-500.0,0.00014191,2]
[354055445,1740211846100,-500.0,0.00014191,2]
[354055446,1740211846109,-500.0,0.00014191,2]
[354055448,1740211846119,-500.0,0.00014191,2]
[354055451,1740211846132,-500.0,0.00014191,2]
[354055453,1740211846142,-500.0,0.00014191,2]
[354055455,1740211846152,-500.0,0.00014191,2]
[354055457,1740211846161,-4914.56,0.00014191,2]
[354055459,1740211846170,-185.4,0.00014273,2]
[354055461,1740211846179,-912.48,0.00014273,2]
[354055463,1740211846188,-500.0,0.00014273,2]
[354055465,1740211846198,-500.0,0.00014273,2]
[354055467,1740211846207,-500.0,0.00014273,2]
[354055469,1740211846217,-500.0,0.00014273,2]
[354055470,1740211846226,-500.0,0.00014273,2]
[354055473,1740211846235,-500.0,0.00014273,2]
[354055475,1740211846246,-616.45,0.00014273,2]
[354055477,1740211846255,-500.0,0.00014273,2]
[354055479,1740211846265,-575.43,0.00014273,2]
[354055481,1740211846274,-1872.78,0.00014273,2]
[354055483,1740211846283,-500.0,0.00014273,2]
[354055485,1740211846293,-500.0,0.00014273,2]
[354055487,1740211846302,-500.0,0.00014273,2]
[354055489,1740211846311,-500.0,0.00014273,2]
[354055491,1740211846321,-500.0,0.00014273,2]
[354055493,1740211846330,-500.0,0.00014273,2]
[354055495,1740211846340,-500.0,0.00014273,2]
[354055497,1740211846349,-500.0,0.00014273,2]
[354055499,1740211846358,-4914.56,0.00014273,2]
[354055501,1740211846367,-151.0,0.000143,2]
[354055503,1740211846377,-12924.89674434,0.00014305,2]
[354055505,1740211846387,-912.48,0.00014356,2]
[354055507,1740211846396,-500.0,0.00014356,2]
[354055509,1740211846405,-500.0,0.00014356,2]
[354055511,1740211846416,-456.1,0.00014356,2]
[354055513,1740211846425,-500.0,0.00014356,2]
[354055515,1740211846435,-544.59,0.00014356,2]
[354055517,1740211846444,-500.0,0.00014356,2]
[354055519,1740211846455,-500.0,0.00014356,2]
[354055521,1740211846464,-575.43,0.00014356,2]
[354055523,1740211846473,-1872.78,0.00014356,2]
[354055525,1740211846482,-500.0,0.00014356,2]
[354055527,1740211846491,-500.0,0.00014356,2]
[354055529,1740211846500,-335.55,0.00014356,2]
[354055531,1740211846510,-500.0,0.00014356,2]
[354055533,1740211846519,-500.0,0.00014356,2]
[354055535,1740211846529,-500.0,0.00014356,2]
[354055537,1740211846538,-500.0,0.00014356,2]
[354055539,1740211846547,-500.0,0.00014356,2]
[354055541,1740211846557,-4914.56,0.00014356,2]
[354055543,1740211846566,-912.48,0.00014438,2]
[354055545,1740211846575,-500.0,0.00014438,2]
[354055547,1740211846584,-500.0,0.00014438,2]
[354055549,1740211846593,-500.0,0.00014438,2]
[354055551,1740211846602,-500.0,0.00014438,2]
[354055553,1740211846611,-500.0,0.00014438,2]
[354055555,1740211846620,-575.43,0.00014438,2]
[354055557,1740211846629,-1872.78,0.00014438,2]
[354055559,1740211846639,-500.0,0.00014438,2]
[354055561,1740211846648,-500.0,0.00014438,2]
[354055563,1740211846657,-500.0,0.00014438,2]
[354055565,1740211846666,-500.0,0.00014438,2]
[354055567,1740211846676,-500.0,0.00014438,2]
[354055569,1740211846685,-500.0,0.00014438,2]
[354055571,1740211846694,-500.0,0.00014438,2]
[354055573,1740211846703,-4914.56,0.00014438,2]
[354055575,1740211846713,-466.00988255,0.00014465,2]
[354055577,1740211846722,-912.48,0.0001452,2]
[354055579,1740211846732,-208.05,0.0001452,2]
[354055581,1740211846741,-500.0,0.0001452,2]
[354055583,1740211846751,-500.0,0.0001452,2]
[354055585,1740211846760,-500.0,0.0001452,2]
[354055587,1740211846769,-500.0,0.0001452,2]
[354055589,1740211846779,-575.43,0.0001452,2]
[354055591,1740211846788,-1872.78,0.0001452,2]
[354055593,1740211846797,-500.0,0.0001452,2]
[354055595,1740211846806,-373.9,0.0001452,2]
[354055597,1740211846816,-500.0,0.0001452,2]
[354055599,1740211846826,-263.8,0.0001452,2]
[354055601,1740211846835,-151.0,0.0001452,2]
[354055603,1740211846844,-500.0,0.0001452,2]
[354055605,1740211846854,-500.0,0.0001452,2]
[354055607,1740211846863,-500.0,0.0001452,2]
[354055609,1740211846871,-4914.56,0.0001452,2]
[354055611,1740211846880,-562.5915667,0.00014521,2]
[354055620,1740211846952,-477.741,0.00014532,2]
[354055622,1740211846963,-2180.87375129,0.000146,2]
[354055624,1740211846972,-912.48,0.00014602,2]
[354055626,1740211846981,-500.0,0.00014602,2]
[354055628,1740211846991,-500.0,0.00014602,2]
[354055630,1740211847000,-500.0,0.00014602,2]
[354055632,1740211847009,-500.0,0.00014602,2]
[354055634,1740211847018,-575.43,0.00014602,2]
[354055636,1740211847027,-1872.78,0.00014602,2]
[354055638,1740211847037,-500.0,0.00014602,2]
[354055640,1740211847047,-500.0,0.00014602,2]
[354055642,1740211847061,-500.0,0.00014602,2]
[354055645,1740211847071,-500.0,0.00014602,2]
[354055646,1740211847080,-500.0,0.00014602,2]
[354055649,1740211847090,-912.48,0.00014684,2]
[354055651,1740211847100,-500.0,0.00014684,2]
[354055653,1740211847109,-500.0,0.00014684,2]
[354055655,1740211847119,-151.0,0.00014684,2]
[354055656,1740211847129,-151.0,0.00014684,2]
[354055659,1740211847146,-423.55,0.00014684,2]
[354055660,1740211847156,-500.0,0.00014684,2]
[354055662,1740211847165,-575.43,0.00014684,2]
[354055664,1740211847175,-1872.78,0.00014684,2]
[354055666,1740211847184,-2355.015101,0.00014684,2]
[354055667,1740211847197,-500.0,0.00014684,2]
[354055668,1740211847206,-2355.015101,0.00014684,2]
[354055669,1740211847215,-1673.014706,0.00014684,2]
[354055670,1740211847225,-1673.014706,0.00014684,2]
[354055671,1740211847234,-500.0,0.00014684,2]
[354055672,1740211847243,-500.0,0.00014684,2]
[354055673,1740211847253,-500.0,0.00014684,2]
[354055674,1740211847263,-500.0,0.00014684,2]
[354055675,1740211847272,-1068.21930288,0.000147,2]
[354055676,1740211847281,-1068.21930288,0.000147,2]
[354055677,1740211847291,-1068.21930288,0.000147,2]
[354055678,1740211847300,-1068.21930288,0.000147,2]
[354055679,1740211847310,-1068.21930288,0.000147,2]
[354055680,1740211847319,-1068.21930288,0.000147,2]
[354055681,1740211847328,-1068.21930288,0.000147,2]
[354055682,1740211847338,-1068.21930288,0.000147,2]
[354055683,1740211847354,-1068.21930288,0.000147,2]
[354055684,1740211847369,-1068.21930288,0.000147,2]
[354055686,1740211847382,-1068.21930288,0.000147,2]
[354055688,1740211847392,-1068.21930288,0.000147,2]
[354055690,1740211847401,-1068.21930288,0.000147,2]
[354055692,1740211847410,-1068.21930288,0.000147,2]
[354055694,1740211847419,-1068.21930288,0.000147,2]
[354055696,1740211847428,-1068.21930288,0.000147,2]
[354055698,1740211847437,-1068.21930288,0.000147,2]
[354055700,1740211847446,-1068.21930288,0.000147,2]
[354055702,1740211847455,-1068.21930288,0.000147,2]
[354055703,1740211847464,-1068.21,0.000147,2]
[354055706,1740211847474,-153.092836,0.000147,2]
[354055707,1740211847483,-153.092836,0.000147,2]
[354055709,1740211847492,-153.092836,0.000147,2]
[354055711,1740211847501,-153.092836,0.000147,2]
[354055713,1740211847510,-153.092836,0.000147,2]
[354055715,1740211847519,-153.092836,0.000147,2]
[354055717,1740211847528,-153.092836,0.000147,2]
[354055719,1740211847537,-153.092836,0.000147,2]
[354055721,1740211847547,-153.092836,0.000147,2]
[354055724,1740211847557,-153.092836,0.000147,2]
[354055726,1740211847568,-153.092836,0.000147,2]
[354055728,1740211847577,-153.092836,0.000147,2]
[354055730,1740211847587,-153.092836,0.000147,2]
[354055732,1740211847596,-153.092836,0.000147,2]
[354055734,1740211847605,-153.092836,0.000147,2]
[354055736,1740211847615,-153.092836,0.000147,2]
[354055738,1740211847624,-153.09,0.000147,2]
[354055740,1740211847636,-912.48,0.00014767,2]
[354055742,1740211847645,-500.0,0.00014767,2]
[354055744,1740211847653,-500.0,0.00014767,2]
[354055746,1740211847662,-500.0,0.00014767,2]
[354055748,1740211847672,-575.43,0.00014767,2]
[354055750,1740211847681,-1872.78,0.00014767,2]
[354055752,1740211847690,-500.0,0.00014767,2]
[354055754,1740211847700,-500.0,0.00014767,2]
[354055756,1740211847709,-459.5,0.00014767,2]
[354055758,1740211847718,-500.0,0.00014767,2]
[354055760,1740211847727,-585.20103111,0.00014767,2]
[354055762,1740211847736,-3000.0,0.000148,2]
[354055764,1740211847745,-1377.1913,0.000148,2]
[354055766,1740211847755,-1377.1913,0.000148,2]
[354055768,1740211847764,-367.650566,0.000148,2]
[354055770,1740211847773,-367.650566,0.000148,2]
[354055772,1740211847782,-151.0,0.000148,2]
[354055774,1740211847791,-151.0,0.000148,2]
[354055776,1740211847800,-7691.05699425,0.000148,2]
[354055778,1740211847809,-151.211947,0.000148,2]
[354055780,1740211847818,-301.421488,0.000148,2]
[354055781,1740211847827,-626.653204,0.000148,2]
[354055783,1740211847836,-301.421488,0.000148,2]
[354055785,1740211847845,-626.653204,0.000148,2]
[354055787,1740211847855,-303270.275724,0.000148,2]
[354055789,1740211847864,-370.713483,0.000148,2]
[354055792,1740211847873,-370.713483,0.000148,2]
[354055794,1740211847883,-912.48,0.00014849,2]
[354055796,1740211847893,-500.0,0.00014849,2]
[354055798,1740211847902,-500.0,0.00014849,2]
[354055800,1740211847911,-500.0,0.00014849,2]
[354055802,1740211847920,-575.43,0.00014849,2]
[354055803,1740211847929,-1872.78,0.00014849,2]
[354055805,1740211847938,-500.0,0.00014849,2]
[354055808,1740211847947,-500.0,0.00014849,2]
[354055810,1740211847958,-500.0,0.00014849,2]
[354055812,1740211847967,-502.10124288,0.00014873,2]
[354055814,1740211847976,-500.0,0.00014873,2]
[354055815,1740211847985,-69561.39055559,0.0001489,2]
[354055817,1740211847994,-387.819974,0.0001489,2]
[354055819,1740211848003,-387.819974,0.0001489,2]
[354055821,1740211848012,-560.34749,0.0001489,2]
[354055823,1740211848022,-560.34749,0.0001489,2]
[354055825,1740211848031,-1943.6,0.000149,2]
[354055827,1740211848040,-1899.20532979,0.000149,2]
[354055829,1740211848057,-568.77739468,0.000149,2]
[354055832,1740211848068,-151.0,0.000149,2]
[354055834,1740211848078,-151.0,0.000149,2]
[354055836,1740211848087,-151.236011,0.000149,2]
[354055838,1740211848098,-499.672447,0.000149,2]
[354055840,1740211848108,-499.672447,0.000149,2]
[354055841,1740211848117,-151.0,0.000149,2]
[354055844,1740211848128,-151.0,0.000149,2]
[354055852,1740211848196,-1377.1913,0.000149,2]
[354055854,1740211848206,-1377.1913,0.000149,2]
[354055856,1740211848215,-367.650566,0.000149,2]
[354055858,1740211848223,-367.650566,0.000149,2]
[354055860,1740211848232,-151.0,0.000149,2]
[354055862,1740211848241,-151.0,0.000149,2]
[354055864,1740211848251,-175.461755,0.000149,2]
[354055866,1740211848260,-151.0,0.000149,2]
[354055868,1740211848270,-387.819974,0.000149,2]
[354055869,1740211848279,-387.819974,0.000149,2]
[354055871,1740211848289,-560.34749,0.000149,2]
[354055873,1740211848298,-560.34749,0.000149,2]
[354055875,1740211848307,-301.421488,0.000149,2]
[354055877,1740211848316,-626.653204,0.000149,2]
[354055879,1740211848326,-301.421488,0.000149,2]
[354055881,1740211848336,-151.0,0.000149,2]
[354055883,1740211848346,-626.653204,0.000149,2]
[354055885,1740211848356,-151.0,0.000149,2]
[354055887,1740211848366,-2355.015101,0.000149,2]
[354055889,1740211848376,-2355.015101,0.000149,2]
[354055891,1740211848385,-407512.79355207,0.000149,2]
[354055903,1740211848485,-253.2173168,0.000149,2]
[354055905,1740211848497,-2818.28446965,0.000149,2]
[354055908,1740211848508,-15422.47869075,0.000149,2]
[354056458,1740211946545,229.026553,9.041e-05,2]
[354056467,1740212838105,-257.06022137,0.00012647,2]
[354056468,1740212846078,-42.93977863,0.00012647,2]
[354056469,1740212846105,-1246.20041271,0.00012648,2]
[354056473,1740212960914,229.74297,9.041e-05,2]
[354056502,1740213032560,-5000.0,0.00012648,2]
[354056506,1740213035883,-9165.19972229,0.00012648,2]
[354056518,1740213040639,-28.56224682,0.00012821,2]
[354056519,1740213040669,-459.37121148,0.00012821,2]
[354056520,1740213040678,-2796.7890982,0.00012821,10]
[354056521,1740213040688,-172.78973367,0.00013498,2]
[354056522,1740213040697,-697.06852769,0.00013498,2]
[354056523,1740213040706,-15092.12282855,0.000135,2]
[354056537,1740213046604,-143.23779904,0.000135,2]
[354056538,1740213088955,-300.0,0.00013499,2]
[354056539,1740213088988,-9700.0,0.000135,2]
[354056540,1740213136716,-10000.0,0.000135,2]
[354056541,1740213529035,-172.78973364,0.00013498,2]
[354056542,1740213529073,-9827.21026636,0.000135,2]
[354056543,1740213603146,200.0,9.078e-05,2]
[354056544,1740213623128,-10000.0,0.000135,2]
[354056559,1740214232799,-1532.67900001,0.00013297,2]
[354056560,1740214232853,-2466.36162807,0.00013297,2]
[354056561,1740214232961,-1134.62260034,0.00013297,2]
[354056574,1740214238963,-3107.69141539,0.00013297,2]
[354056575,1740214238998,-5036.84436514,0.00013297,2]
[354056576,1740214239007,-172.78973364,0.00013498,2]
[354056577,1740214239017,-22192.00523723,0.000135,2]
[354056578,1740214239027,-205.3594955,0.00013598,2]
[354056579,1740214239035,-3000.0,0.00013598,2]
[354056580,1740214239046,-4632.11487717,0.00013598,2]
[354056581,1740214239056,-3000.0,0.00013599,2]
[354056582,1740214239066,-500.0,0.00013673,2]
[354056583,1740214239077,-503.73572662,0.00013673,2]
[354056584,1740214239086,-500.0,0.00013673,2]
[354056585,1740214239095,-501.48312473,0.00013673,2]
[354056586,1740214239104,-500.56578319,0.00013673,2]
[354056587,1740214239113,-500.0,0.00013673,2]
[354056588,1740214239122,-500.0,0.00013673,2]
[354056589,1740214239130,-500.0,0.00013673,2]
[354056590,1740214239139,-235.57027522,0.00013673,2]
[354056591,1740214239148,-416.29957705,0.00013673,2]
[354056592,1740214239158,-151.0,0.0001369,2]
[354056593,1740214239167,-500.0,0.00013697,2]
[354056594,1740214239176,-500.0,0.00013697,2]
[354056595,1740214239185,-217.89154688,0.00013697,2]
[354056596,1740214239194,-500.0,0.00013697,2]
[354056597,1740214239203,-500.0,0.00013697,2]
[354056598,1740214239212,-500.0,0.00013697,2]
[354056599,1740214239221,-500.0,0.00013697,2]
[354056600,1740214239231,-500.0,0.00013697,2]
[354056601,1740214239240,-500.0,0.00013697,2]
[354056602,1740214239249,-500.0,0.00013697,2]
[354056603,1740214239258,-394.94362041,0.00013697,2]
[354056604,1740214239268,-500.0,0.00013697,2]
[354056605,1740214239277,-500.0,0.00013697,2]
[354056606,1740214239287,-500.0,0.00013697,2]
[354056607,1740214239296,-500.0,0.00013697,2]
[354056608,1740214239305,-500.0,0.00013697,2]
[354056609,1740214239314,-500.0,0.00013697,2]
[354056610,1740214239323,-500.0,0.00013697,2]
[354056611,1740214239332,-500.0,0.00013697,2]
[354056612,1740214239342,-500.0,0.00013697,2]
[354056613,1740214239350,-500.0,0.00013697,2]
[354056614,1740214239359,-500.0,0.00013697,2]
[354056615,1740214239369,-500.0,0.00013697,2]
[354056616,1740214239378,-500.0,0.00013697,2]
[354056617,1740214239387,-500.0,0.00013697,2]
[354056618,1740214239396,-500.0,0.00013697,2]
[354056619,1740214239405,-500.0,0.00013697,2]
[354056620,1740214239414,-500.0,0.00013697,2]
[354056621,1740214239423,-500.0,0.00013697,2]
[354056622,1740214239432,-468.82250091,0.00013697,2]
[354056623,1740214239441,-500.0,0.00013697,2]
[354056624,1740214239450,-1609.53634132,0.00013698,5]
[354056625,1740214239459,-10272.4753809,0.00013698,5]
[354056626,1740214239468,-500.0,0.00013698,2]
[354056627,1740214239477,-500.0,0.00013698,2]
[354056628,1740214239486,-500.0,0.00013698,2]
[354056629,1740214239495,-500.0,0.00013698,2]
[354056630,1740214239504,-500.0,0.00013698,2]
[354056631,1740214239514,-500.0,0.00013698,2]
[354056632,1740214239523,-500.0,0.00013698,2]
[354056633,1740214239532,-500.0,0.00013698,2]
[354056634,1740214239541,-542.77023609,0.00013698,2]
[354056635,1740214239550,-476.60168063,0.00013698,2]
[354056636,1740214239560,-500.0,0.00013698,2]
[354056637,1740214239568,-618.11917214,0.00013698,2]
[354056638,1740214239578,-240.41967557,0.00013698,2]
[354056639,1740214239587,-500.0,0.00013698,2]
[354056640,1740214239595,-506.36824721,0.00013698,2]
[354056641,1740214239604,-500.0,0.00013698,2]
[354056642,1740214239613,-500.0,0.00013698,2]
[354056643,1740214239622,-500.0,0.00013698,2]
[354056644,1740214239631,-533.17168131,0.00013698,2]
[354056645,1740214239640,-500.58032762,0.00013698,2]
[354056646,1740214239649,-501.84905957,0.00013698,2]
[354056647,1740214239658,-500.0,0.00013698,2]
[354056648,1740214239667,-526.88564986,0.00013698,2]
[354056649,1740214239676,-500.0,0.00013698,2]
[354056650,1740214239685,-616.22037608,0.00013698,2]
[354056651,1740214239694,-500.0,0.00013698,2]
[354056652,1740214239703,-502.48091884,0.00013698,2]
[354056653,1740214239712,-500.0,0.00013698,2]
[354056654,1740214239721,-500.0,0.00013698,2]
[354056655,1740214239731,-500.0,0.00013698,2]
[354056656,1740214239740,-500.42967487,0.00013698,2]
[354056657,1740214239749,-500.0,0.00013698,2]
[354056658,1740214239758,-500.0,0.00013698,2]
[354056659,1740214239767,-500.0,0.00013698,2]
[354056660,1740214239776,-500.0,0.00013698,2]
[354056661,1740214239785,-500.0,0.00013698,2]
[354056662,1740214239794,-500.0,0.00013698,2]
[354056663,1740214239804,-500.0,0.00013698,2]
[354056664,1740214239815,-500.0,0.00013698,2]
[354056665,1740214239824,-500.0,0.00013698,2]
[354056666,1740214239833,-500.0,0.00013698,2]
[354056667,1740214239842,-500.0,0.00013698,2]
[354056668,1740214239852,-500.0,0.00013698,2]
[354056669,1740214239860,-500.0,0.00013698,2]
[354056670,1740214239869,-500.43080504,0.00013698,2]
[354056671,1740214239879,-500.0,0.00013698,2]
[354056672,1740214239889,-500.0,0.00013698,2]
[354056673,1740214239899,-500.0,0.00013698,2]
[354056674,1740214239909,-500.0,0.00013698,2]
[354056675,1740214239918,-500.0,0.00013698,2]
[354056676,1740214239927,-500.0,0.00013698,2]
[354056677,1740214239938,-500.0,0.00013698,2]
[354056678,1740214239947,-500.0,0.00013698,2]
[354056679,1740214239958,-500.0,0.00013698,2]
[354056680,1740214239967,-500.0,0.00013698,2]
[354056681,1740214239976,-500.0,0.00013698,2]
[354056682,1740214239985,-500.0,0.00013698,2]
[354056683,1740214239995,-509.10663973,0.00013698,2]
[354056684,1740214240005,-500.0,0.00013698,2]
[354056685,1740214240014,-500.0,0.00013698,2]
[354056686,1740214240023,-500.0,0.00013698,2]
[354056687,1740214240033,-500.0,0.00013698,2]
[354056688,1740214240042,-500.0,0.00013698,2]
[354056689,1740214240051,-500.0,0.00013698,2]
[354056690,1740214240061,-500.0,0.00013698,2]
[354056691,1740214240070,-173.36975572,0.00013698,2]
[354056692,1740214240079,-500.31375197,0.00013698,2]
[354056693,1740214240089,-500.0,0.00013698,2]
[354056694,1740214240098,-486.04298963,0.00013698,2]
[354056695,1740214240107,-587.62360605,0.00013698,2]
[354056696,1740214240117,-500.0,0.00013698,2]
[354056697,1740214240127,-500.0,0.00013698,2]
[354056698,1740214240136,-607.02525949,0.00013698,2]
[354056699,1740214240145,-339.79387179,0.00013698,2]
[354056700,1740214240155,-500.0,0.00013698,2]
[354056701,1740214240165,-500.0,0.00013698,2]
[354056702,1740214240174,-500.0,0.00013698,2]
[354056703,1740214240184,-500.0,0.00013698,2]
[354056704,1740214240194,-563.87450709,0.00013698,2]
[354056705,1740214240203,-500.0,0.00013698,2]
[354056706,1740214240213,-500.0,0.00013698,2]
[354056707,1740214240222,-500.0,0.00013698,2]
[354056708,1740214240231,-500.0,0.00013698,2]
[354056709,1740214240241,-500.0,0.00013698,2]
[354056710,1740214240250,-500.0,0.00013698,2]
[354056711,1740214240259,-500.0,0.00013698,2]
[354056712,1740214240268,-500.37044899,0.00013698,2]
[354056713,1740214240277,-500.0,0.00013698,2]
[354056715,1740214240287,-500.0,0.00013698,2]
[354056716,1740214240296,-500.0,0.00013698,2]
[354056717,1740214240306,-500.0,0.00013698,2]
[354056718,1740214240315,-500.0,0.00013698,2]
[354056719,1740214240325,-500.0,0.00013698,2]
[354056720,1740214240334,-564.74,0.00013698,2]
[354056721,1740214240344,-500.0,0.00013698,2]
[354056722,1740214240353,-253.46857592,0.00013698,2]
[354056723,1740214240362,-500.0,0.00013698,2]
[354056724,1740214240372,-615.66,0.00013698,2]
[354056725,1740214240382,-500.0,0.00013698,2]
[354056726,1740214240392,-500.53910679,0.00013698,2]
[354056727,1740214240401,-500.0,0.00013698,2]
[354056728,1740214240411,-500.0,0.00013698,2]
[354056729,1740214240420,-500.59699173,0.00013698,2]
[354056730,1740214240429,-500.0,0.00013698,2]
[354056731,1740214240439,-500.0,0.00013698,2]
[354056733,1740214240448,-500.0,0.00013698,2]
[354056734,1740214240457,-500.0,0.00013698,2]
[354056735,1740214240467,-500.0,0.00013698,2]
[354056736,1740214240476,-500.5282821,0.00013698,2]
[354056737,1740214240485,-500.0,0.00013698,2]
[354056738,1740214240495,-500.0,0.00013698,2]
[354056739,1740214240504,-501.61630404,0.00013698,2]
[354056740,1740214240514,-500.0,0.00013698,2]
[354056741,1740214240523,-500.0,0.00013698,2]
[354056742,1740214240531,-122.9109086,0.00013698,2]
[354056760,1740214243670,-377.0890914,0.00013698,2]
[354056761,1740214243680,-500.0,0.00013698,2]
[354056762,1740214243690,-644.25,0.00013698,2]
[354056763,1740214243699,-500.0,0.00013698,2]
[354056764,1740214243709,-500.0,0.00013698,2]
[354056765,1740214243718,-500.0,0.00013698,2]
[354056766,1740214243727,-500.0,0.00013698,2]
[354056767,1740214243738,-500.0,0.00013698,2]
[354056768,1740214243748,-500.0,0.00013698,2]
[354056769,1740214243758,-500.0,0.00013698,2]
[354056770,1740214243768,-500.0,0.00013698,2]
[354056771,1740214243777,-500.0,0.00013698,2]
[354056772,1740214243787,-500.0,0.00013698,2]
[354056773,1740214243798,-500.0,0.00013698,2]
[354056774,1740214243808,-500.0,0.00013698,2]
[354056775,1740214243820,-500.0,0.00013698,2]
[354056776,1740214243829,-500.0,0.00013698,2]
[354056777,1740214243839,-500.0,0.00013698,2]
[354056778,1740214243848,-500.0,0.00013698,2]
[354056779,1740214243857,-500.0,0.00013698,2]
[354056780,1740214243868,-500.0,0.00013698,2]
[354056781,1740214243876,-500.0,0.00013698,2]
[354056782,1740214243886,-500.0,0.00013698,2]
[354056783,1740214243896,-500.0,0.00013698,2]
[354056784,1740214243905,-500.62087108,0.00013698,2]
[354056785,1740214243914,-500.69019342,0.00013698,2]
[354056786,1740214243923,-501.61953422,0.00013698,2]
[354056787,1740214243933,-500.0,0.00013698,2]
[354056788,1740214243942,-500.0,0.00013698,2]
[354056789,1740214243951,-500.0,0.00013698,2]
[354056790,1740214243960,-500.0,0.00013698,2]
[354056791,1740214243969,-500.0,0.00013698,2]
[354056792,1740214243978,-500.45156259,0.00013698,2]
[354056793,1740214243987,-500.0,0.00013698,2]
[354056794,1740214243997,-500.0,0.00013698,2]
[354056795,1740214244006,-500.0,0.00013698,2]
[354056796,1740214244015,-500.64480755,0.00013698,2]